Cogmind - Beta 17 @@@ ROGUE MODE // 2026.07.29 @ 17:36:35 Player: ae Result: Defending 0bPrime! Performance ------------- Evolutions (8) 4000 Regions Visited (22) 4400 Robots Destroyed (254) 1270 Value Destroyed (13073) 13073 Prototype IDs (178) 3560 Alien Tech Used (5) 1000 Bonus (35623) 35623 TOTAL SCORE: 62926 Bonus ------- High Alert Combat Kills 5608 Follower Combat Kills 480 Registered with UFD 300 Met Optimus in HQ 500 MAIN.C Attacked Warlord 500 Destroyed Superfortress 15000 Met Optimus at Protoforge 1000 Executed Drillbomb Mission 10000 Win 3000 Friendly Fire -765 Cogmind --------- Core Integrity 672/1450 Matter 190/300 Energy 340/340 System Corruption 0% Temperature Cool (0) Movement Hovering (33) Location 0bPrime Parts ------- > --- POWER (2) -------- Concept Zero-point Core Concept Zero-point Core > --- PROPULSION (8) --- Experimental Antigrav System Experimental Antigrav System Experimental Antigrav System Experimental Antigrav System Gravjet Array Concept Gyrokinetic System Concept Gyrokinetic System > --- UTILITY (11) ----- Concept Antigrav Storage Unit Plexus Tether Spectral Analyzer Experimental Active Sensor Suite Experimental Targeting Computer Experimental Target Analyzer Experimental Core Analyzer Experimental Reaction Control System Concept Cloak Mesh Concept Core Shell > --- WEAPON (2) ------- Concept Tiamat Rocket Array > --- INVENTORY (25) --- Concept Zero-point Core Concept Combat Aerolev Unit Concept Combat Aerolev Unit Concept Gyrokinetic System Concept Gyrokinetic System Concept Gyrokinetic System Concept NT7 Matterbank (750) Experimental Active Sensor Suite Experimental Weapon Cycler Concept Phase Shift Module Graphene Brace Concept Antimissile System Experimental System Purifier Concept Matter Streamer Crosscalibrator Null Cannon Concept Plasma Driver Concept XC Strikerail Perforator Concept Rapid Grenade Launcher Concept Tiamat Rocket Array Concept Smart ZDS Experimental Terror Saw Peak State ------------ > --- POWER ------------ Concept Zero-point Core Concept Zero-point Core > --- PROPULSION ------- Experimental Antigrav System Experimental Antigrav System Experimental Antigrav System Experimental Antigrav System Gravjet Array Concept Gyrokinetic System Concept Gyrokinetic System > --- UTILITY ---------- Concept Antigrav Storage Unit Spectral Analyzer Experimental Active Sensor Suite Experimental Targeting Computer Experimental Target Analyzer Experimental Core Analyzer Experimental Reaction Control System Concept Phase Shift Module Concept Cloak Mesh Concept Core Shell > --- WEAPON ----------- Perforator > --- INVENTORY -------- Micro Antimatter Reactor Experimental Antigrav System Gravjet Array Concept Combat Aerolev Unit Concept Combat Aerolev Unit Concept Gyrokinetic System Concept Gyrokinetic System Concept Gyrokinetic System Concept NT7 Matterbank Experimental Active Sensor Suite Experimental Weapon Cycler Experimental Transmission Jammer Graphene Brace Concept Antimissile System Concept Matter Streamer Crosscalibrator Null Cannon Concept Plasma Driver Concept XC Strikerail Concept Rapid Grenade Launcher Concept Tiamat Rocket Array Concept Tiamat Rocket Array Concept Smart ZDS [Rating: 281] Favorites ----------- Power Concept Zero-point Core Engine Cooled Ion Engine Power Core Concept Zero-point Core Reactor Hybrid Graviton Reactor Propulsion Experimental Antigrav System Treads Light Treads Leg Aluminum Leg Hover Unit Experimental Antigrav System Flight Unit Improved Flight Unit Utility Experimental Core Analyzer Device Experimental Active Sensor Suite Storage Concept Antigrav Storage Unit Processor Experimental Core Analyzer Hackware Improved Hacking Suite Protection Concept Core Shell Artifact Phase Redirector Weapon Perforator Energy Gun Beam Rifle Energy Cannon Concept Plasma Driver Ballistic Gun Concept XC Strikerail Ballistic Cannon Perforator Launcher Rocket Launcher Special Weapon Improved Remote Datajack Impact Weapon Impact Mace Slashing Weapon Power Sword Special Melee Weapon Improved Datajack Build | -11 -10 -9 -8 -7 -7 -7 -7 -5 -5 -5 -4 -4 -4 -4 -4 -4 -3 -3 -3 -2 -2 -2 ------- Run | Yrd Mat Mat Mat Fac Sto Rec Scr Fac Was Fac Fac Was Fac Upp Upp War Pro Res Tes Res Qua Frg Slots Evolved 16 | . . 2 2 2 . . . 4 . . 2 . . . . . . 2 . 2 . . Power 1 | . . . . . . . . 1 . . . . . . . . . . . . . . Propulsion 6 | . . 1 1 . . . . 2 . . . . . . . . . 1 . 1 . . Utility 9 | . . 1 1 2 . . . 1 . . 2 . . . . . . 1 . 1 . . Weapon . | . . . . . . . . . . . . . . . . . . . . . . . Parts Attached 183 | 7 6 23 10 15 2 . 3 16 . 4 9 1 4 1 2 3 . 3 2 4 3 65 Power 12 | 1 1 1 . . . . 1 1 . 1 1 . . . . . . . . . . 5 Engine 5 | 1 1 1 . . . . . 1 . 1 . . . . . . . . . . . . Core 4 | . . . . . . . 1 . . . 1 . . . . . . . . . . 2 Reactor 3 | . . . . . . . . . . . . . . . . . . . . . . 3 Propulsion 47 | 2 1 7 6 6 1 . . 3 . . 2 . . . . 1 . . . 2 . 16 Treads 14 | 2 1 6 5 . . . . . . . . . . . . . . . . . . . Leg 1 | . . 1 . . . . . . . . . . . . . . . . . . . . Wheel . | . . . . . . . . . . . . . . . . . . . . . . . Hover 9 | . . . . . . . . . . . . . . . . . . . . . . 9 Flight 23 | . . . 1 6 1 . . 3 . . 2 . . . . 1 . . . 2 . 7 Utility 87 | 2 1 10 1 7 1 . 1 9 . 3 5 . 2 1 2 1 . 3 2 2 1 33 Device 42 | 1 . 4 . 2 . . . 4 . 2 3 . 1 . 2 1 . 3 . 2 . 17 Storage 6 | 1 1 1 . . . . . . . 1 . . . . . . . . 1 . . 1 Processor 17 | . . . . 2 . . . 2 . . 1 . 1 . . . . . . . . 11 Hackware 10 | . . . . 2 1 . 1 3 . . 1 . . 1 . . . . 1 . . . Protection 11 | . . 5 1 1 . . . . . . . . . . . . . . . . . 4 Artifact 1 | . . . . . . . . . . . . . . . . . . . . . 1 . Weapon 37 | 2 3 5 3 2 . . 1 3 . . 1 1 2 . . 1 . . . . 2 11 Energy Gun 8 | 2 1 4 . . . . . . . . . . . . . 1 . . . . . . Energy Cannon 6 | . . . . . . . . 1 . . 1 . . . . . . . . . 2 2 Ballistic Gun 7 | . 1 1 2 . . . . . . . . . . . . . . . . . . 3 Ballistic Cannon 2 | . 1 . . . . . . . . . . . . . . . . . . . . 1 Launcher 6 | . . . 1 . . . . . . . . 1 . . . . . . . . . 4 Special Weapon 1 | . . . . . . . . 1 . . . . . . . . . . . . . . Impact Weapon 1 | . . . . 1 . . . . . . . . . . . . . . . . . . Slashing Weapon 5 | . . . . 1 . . 1 1 . . . . 1 . . . . . . . . 1 Piercing Weapon . | . . . . . . . . . . . . . . . . . . . . . . . Special Melee Weapon 1 | . . . . . . . . . . . . . 1 . . . . . . . . . Unidentified Prototypes 14 | . . 2 1 2 . . . . . . . . . . . . . . . . 4 5 Parts Lost 13 | . 1 2 . . . . . . . . 2 . . . . 1 . . . . . 7 Power 2 | . 1 . . . . . . . . . . . . . . . . . . . . 1 Propulsion 6 | . . 2 . . . . . . . . 2 . . . . 1 . . . . . 1 Utility 5 | . . . . . . . . . . . . . . . . . . . . . . 5 Weapon . | . . . . . . . . . . . . . . . . . . . . . . . Highest Loss Streak 5 | . 1 1 . . . . . . . . 1 . . . . 1 . . . . . 5 To Critical Strikes . | . . . . . . . . . . . . . . . . . . . . . . . Average Backups 18 | 5 9 14 14 5 5 5 4 4 5 9 9 9 9 10 10 10 9 10 9 8 8 21 Power . | . . . 1 . 1 1 . . . . . . . . . . . 1 1 1 1 . Propulsion 3 | 3 4 5 5 1 . 1 1 . 1 1 . . . . . . . . . . . 4 Utility 7 | . 2 4 2 1 2 2 1 2 2 4 4 6 7 7 7 6 5 5 5 4 3 8 Weapon 6 | . 1 4 5 2 1 1 1 1 1 1 2 2 2 2 2 2 3 2 2 2 2 7 Tool/Special . | . . . . . . . . . . . . . . . . . . . . . . . Unused Backups 57 | 1 4 6 2 5 1 . . 1 . 2 3 . 3 2 . . . 1 . . 3 23 Power 2 | . . . . . . . . . . . . . . . . . . . . . . 2 Propulsion 16 | . 4 2 1 1 . . . . . . . . . . . . . . . . . 8 Utility 26 | . . 3 . 1 . . . 1 . 1 2 . 2 2 . . . 1 . . 2 11 Weapon 10 | 1 . 1 1 3 1 . . . . . 1 . . . . . . . . . . 2 Tool/Special 3 | . . . . . . . . . . 1 . . 1 . . . . . . . 1 . Average Slot Usage (%) 88 | . 100 98 97 89 91 92 93 94 100 94 93 95 94 100 100 100 93 93 95 91 99 86 Engine 1 | . 14 11 9 7 7 7 6 1 5 5 4 . . . . . . . . . . . Core 6 | . . . . . . . . 5 5 5 5 10 10 10 10 10 10 9 9 8 8 7 Treads 2 | . 28 30 34 . . . . . . . . . . . . . . . . . . . Hover 19 | . . . . . . . . . . . . . . . . . . . . . . 26 Flight 8 | . . . . 29 30 30 30 34 35 35 31 31 31 31 31 31 31 28 28 29 34 3 Device 13 | . 14 12 9 8 7 7 7 8 11 6 13 10 13 15 10 10 10 13 14 14 17 13 Storage 4 | . 14 11 9 . . . . . . 4 5 5 5 5 5 5 5 4 4 4 4 4 Processor 16 | . . . . 12 15 15 7 15 17 15 10 10 10 10 10 10 10 9 9 8 8 20 Hackware 2 | . . . . 13 15 15 22 12 11 11 10 15 15 15 15 15 15 14 14 13 13 . Protection 4 | . . 7 17 7 6 7 7 1 . . 4 5 1 . 4 5 5 4 4 4 4 3 Energy Gun 1 | . 15 14 4 . . . . . . . . . . . . . . . . . . . Ballistic Gun 1 | . 4 7 13 . . . . . . . . . . . . . . . . . . . Ballistic Cannon 2 | . 7 . . . . . . . . . . . . . . . . . . . . 3 Slashing Weapon 1 | . . . . 1 6 7 7 5 5 4 4 5 5 10 10 9 3 8 8 8 4 . Peak Build Rating 281 | 8 8 18 26 43 46 46 46 75 74 74 85 95 99 101 101 111 108 112 116 141 161 281 Average Rating 208 | 6 7 15 23 35 42 46 45 69 74 66 74 88 91 98 96 105 97 108 112 125 145 266 On Entrance 71 | . 8 8 18 24 43 46 46 45 74 74 66 85 86 95 98 101 108 98 110 114 141 147 Avg Prop Armor Cover (%) 4 | 29 . 5 . . . . . 3 . . 1 . . . . . . . . . . 3 Naked Turns . | . . . . . . . . . . . . . . . . . . . . . . . Heaviest Build 88 | 12 31 43 50 18 17 17 18 23 23 32 30 42 32 33 34 33 37 36 36 36 46 88 Greatest Support 134 | 40 40 63 83 21 22 22 22 34 32 34 36 34 36 37 37 42 36 41 36 50 56 134 Greatest Overweight (x) 13 | . . . . . . . . . . . 1 13 . . . 1 1 . . . . 1 Average Overweight (x) . | . . . . . . . . . . . . . . . . . . . . . . . Largest Inventory Capacity 25 | 8 15 15 15 15 5 5 5 5 5 10 10 10 10 10 10 10 10 10 10 10 10 25 Average Capacity 20 | 7 11 15 15 5 5 5 5 5 5 9 10 10 10 10 10 10 10 10 10 10 10 23 Most Carried 25 | 8 13 15 15 15 5 5 5 5 5 10 10 10 10 10 10 10 10 10 10 10 10 25 Average Carried 19 | 5 9 14 14 5 4 5 4 4 5 9 9 9 9 9 10 9 9 9 9 9 9 22 Final Capacity 25 | 8 15 15 15 5 5 5 5 5 5 10 10 10 10 10 10 10 10 10 10 10 10 25 Final Carried 25 | 8 13 15 15 5 5 5 5 5 5 10 9 10 10 10 10 9 10 10 10 9 10 25 Class Distribution -------------------- 63% | Scavenger-Scout 11% | Hacker-Scout 9% | Mutant 6% | Scavenger-Ninja Dominant Class ---------------- Mutant | -10/Materials Mutant | -9/Materials Mutant | -8/Materials Hacker-Scout | -7/Factory Hacker-Scout | -7/Storage Hacker-Scout | -7/Recycling Hacker-Sprinter | -7/Scraptown Hacker-Scout | -5/Factory Hacker-Scout | -5/Waste Hacker-Scout | -5/Factory Hacker-Scout | -4/Factory Hacker-Scout | -4/Waste Hacker-Scout | -4/Factory Hacker-Scout | -4/Upper Caves Hacker-Scout | -4/Upper Caves Hacker-Sprinter | -4/Warlord Hacker-Scout | -3/Proximity Caves Hacker-Scout | -3/Research Hacker-Scout | -3/Testing Hacker-Scout | -2/Research Hacker-Assassin | -2/Quarantine Scavenger-Scout | -2/Protoforge Resources | -11 -10 -9 -8 -7 -7 -7 -7 -5 -5 -5 -4 -4 -4 -4 -4 -4 -3 -3 -3 -2 -2 -2 ----------- Run | Yrd Mat Mat Mat Fac Sto Rec Scr Fac Was Fac Fac Was Fac Upp Upp War Pro Res Tes Res Qua Frg Matter Collected 19996 | 243 151 593 270 140 60 10 10 210 . 242 160 43 40 70 200 . 175 30 . 92 . 17257 Remotely 4251 | . . . . . . . . . . . . . . . . . . . . . . 4251 Salvage Created 12438 | 249 398 1605 462 227 131 137 95 218 . 798 109 . 30 . . . 182 59 . 92 . 7646 Parts 613 | 22 25 95 20 5 7 6 2 16 . 33 5 . 5 . . . 2 2 . 3 . 365 Haulers Intercepted 22 | . 2 3 3 2 2 . . 1 . 7 1 . . . . . . . . 1 . . Recyclers Shooed 8 | 1 2 4 1 . . . . . . . . . . . . . . . . . . . Parts Field Recycled . | . . . . . . . . . . . . . . . . . . . . . . . Retrieved Matter . | . . . . . . . . . . . . . . . . . . . . . . . Parts Self-Destructed 5 | . . . . . . . 2 . . . . . . . 3 . . . . . . . Prevented 4 | . . . . . . . . . . . . . . . 4 . . . . . . . Parts Restored 12 | . . . . . . . . . . . . . . . . . . . . . . 12 Faulty 12 | . . . . . . . . . . . . . . . . . . . . . . 12 Kills | -11 -10 -9 -8 -7 -7 -7 -7 -5 -5 -5 -4 -4 -4 -4 -4 -4 -3 -3 -3 -2 -2 -2 ------- Run | Yrd Mat Mat Mat Fac Sto Rec Scr Fac Was Fac Fac Was Fac Upp Upp War Pro Res Tes Res Qua Frg Combat Hostiles Destroyed 166 | . 8 23 7 . . . . . . . . . . . . . 1 . . . . 127 Melee 1 | . . . . . . . . . . . . . . . . . 1 . . . . . Guns 45 | . 5 20 4 . . . . . . . . . . . . . . . . . . 16 Cannons 84 | . 3 . . . . . . . . . . . . . . . . . . . . 81 AOE 35 | . . 2 3 . . . . . . . . . . . . . . . . . . 30 Classes Destroyed 27 | 3 4 6 . . . . . . . . . . . . . . 1 . . . . 13 Worker 13 | 2 3 1 1 1 . . . 4 . 1 . . . . . . . . . . . . Builder 4 | . . 3 . . . . . . . 1 . . . . . . . . . . . . Tunneler 8 | 7 . . . . . . . . . . 1 . . . . . . . . . . . Hauler 23 | . 2 3 3 2 2 . . 1 . 7 1 . . . . . . . . 1 . 1 Recycler 8 | 1 . 3 1 1 . 2 . . . . . . . . . . . . . . . . Carrier 1 | . . . . . . . . . . . . . . . . . . . . . . 1 Mechanic 9 | . . 1 . . . . . . . . . . 1 . . . . . . . . 7 Operator 7 | . . 2 . . 1 . . 1 . 1 . . 1 . . . . 1 . . . . Drone 23 | . . . . . . . . . . . . . . . . . 1 . . . . 22 Watcher 9 | . 2 2 . 1 . . . 1 . 1 . . . . . . . 1 . . . 1 Swarmer 6 | . 2 3 . . . . . . . . . . . . . . . . . . . 1 Saboteur 5 | . . . . . . . . . . . . . . . . . . . . . . 5 Grunt 39 | . 6 13 4 . . . . . . . . . . . . . . . . . . 16 Brawler 7 | . . 1 1 . . . . . . . . . . . . . . . . . . 5 Duelist 6 | . . 1 . . . . . . . . . . . . . . . . . . . 5 Protector 2 | . . . . . . . . . . . . . . . . . . . . . . 2 Researcher 7 | . . . . . . . . . . . . . . . . . . . . . . 7 Sentry 17 | . . 5 2 . . . . . . . . . . . . . . . . . . 10 Demolisher 2 | . . . . . . . . . . . . . . . . . . . . . . 2 Hunter 10 | . . . . . . . . . . . . . . . . . . . . . . 10 Programmer 2 | . . . . . . . . . . . . . . . . . . . . . . 2 Hotshot 7 | . . . . . . . . . . . . . . . . . . . . . . 7 Decapitator 9 | . . . . . . . . . . . . . . . . . . . . . . 9 Immortal 4 | . . . . . . . . . . . . . . . . . . . . . . 4 Striker 13 | . . . . . . . . . . . . . . . . . . . . . . 13 Executioner 8 | . . . . . . . . . . . . . . . . . . . . . . 8 Alpha 7 1 | . . . . . . . . . . . . . . . . . . . . . . 1 V-Series 4 | . . . . . . . . . . . . . . . . . . . . . . 4 Scrapoid 3 | . . . . . . . . . . . . . . . . . . . . . . 3 Best Kill Streak 11 | 4 3 6 4 4 2 2 . 3 . 2 1 . 1 . . . 1 1 . 1 . 11 Combat Bots Only 10 | . 2 3 3 . . . . . . . . . . . . . 1 . . . . 10 Max Kills in Single Turn 4 | 1 1 2 2 1 1 1 . 1 . 1 1 . 1 . . . 1 1 . 1 . 4 Gunslinging . | . . . . . . . . . . . . . . . . . . . . . . . Exploded 4 | . . 2 1 . . . . . . . . . . . . . . . . . . 4 Melee 1 | . . . . . . . . . . . . . . . . . 1 . . . . . Uniques/NPCs Destroyed . | . . . . . . . . . . . . . . . . . . . . . . . Combat | -11 -10 -9 -8 -7 -7 -7 -7 -5 -5 -5 -4 -4 -4 -4 -4 -4 -3 -3 -3 -2 -2 -2 -------- Run | Yrd Mat Mat Mat Fac Sto Rec Scr Fac Was Fac Fac Was Fac Upp Upp War Pro Res Tes Res Qua Frg Hostile Shots Fired 433 | . 61 114 17 11 22 . . 9 . 9 10 . 10 5 3 3 . 4 2 . 4 149 Missed 185 | . 15 32 4 9 14 . . 5 . 5 4 . 7 3 1 . . 1 1 . 4 80 Hits 248 | . 46 82 13 2 8 . . 4 . 4 6 . 3 2 2 3 . 3 1 . . 69 Melee 7 | . . . . . . . . . . . 1 . . . . . . . . . . 6 Projectile 241 | . 46 82 13 2 8 . . 4 . 4 5 . 3 2 2 3 . 3 1 . . 63 AOE 4 | . . . . . . . . . . . 1 . . . . . . . . . . 3 Critical Strikes 14 | . . 3 . 1 1 . . . . . 1 . . . . . . . . . . 8 Actively Blocked 8 | . . . . . . . . . . . . . . . . . . . . . . 8 Damage Taken 5571 | . 509 1095 228 27 79 . . 69 . 79 269 . 88 45 23 76 . 66 23 . . 2895 Core 1040 | . 84 53 29 . 20 . . 16 . 21 44 . . 22 . 21 . 20 . . . 710 Absorbed by Shields . | . . . . . . . . . . . . . . . . . . . . . . . Redirected to Shielding 120 | . . . . . . . . . . . . . . . . . . . . . . 120 Regen/Repaired (Parts) 263 | . . 134 . . . . . . . . 91 3 . . . 35 . . . . . . Core Remaining (%) 86 | 100 66 86 94 . . . 97 . . 96 . . . . . . 92 . 98 . . 46 Volleys Fired 725 | 57 63 103 22 . . . . 8 . 12 8 . 5 . 2 1 21 1 3 . . 419 Largest 2 | 2 2 2 2 . . . . 1 . 1 1 . 1 . 1 1 1 1 1 . . 2 Hottest 140 | 90 90 112 79 . . . . 98 . 98 105 . 105 . 105 45 105 105 105 . . 140 Shots Fired 912 | 65 123 203 39 . . . . 8 . 12 8 . 5 . 2 1 21 1 3 . . 421 Gun 508 | 65 93 201 34 . . . . . . . . . . . . 1 . . . . . 114 Cannon 350 | . 30 2 . . . . . 7 . 12 8 . 5 . 2 . 21 1 3 . . 259 Launcher 53 | . . . 5 . . . . . . . . . . . . . . . . . . 48 Special 1 | . . . . . . . . 1 . . . . . . . . . . . . . . Kinetic 413 | . 47 62 23 . . . . . . . . . . . . . . . . . . 281 Thermal 404 | 65 76 101 11 . . . . 7 . 12 8 . 5 . 2 . 21 1 3 . . 92 Explosive 53 | . . . 5 . . . . . . . . . . . . . . . . . . 48 Electromagnetic 40 | . . 40 . . . . . . . . . . . . . . . . . . . . Entropic 1 | . . . . . . . . . . . . . . . . 1 . . . . . . Robot Hit Streak 31 | 9 7 12 8 . . . . 7 . . . . . . . . . . . . . 31 Robot Miss Streak 19 | 9 5 5 2 . . . . . . . . . . . . . . . . . . 19 Penetration Max 3 | . . . . . . . . . . . . . . . . . . . . . . 3 Secondary Targets 4 | . 2 2 . . . . . . . . . . . . . . . . . . . . Max Gunslinging Chain 1 | . 1 1 . . . . . . . . . . . . . . . . . . . . Shots Hit Robots 584 | 42 76 138 30 7 3 2 2 15 . 20 4 . 6 . . . 4 2 1 3 . 229 Core Hits 687 | 11 24 68 22 3 3 1 2 5 . 9 1 . 1 . . . 3 1 . 1 . 532 Critical Kills 89 | . . . . 1 . . . . . . . . . . . . . . . . . 88 Critical Parts Destroyed 123 | . . . . 2 . . . . . . . . . . . . . . . . . 121 Critical Strikes 290 | 4 1 4 . 3 . . . 2 . 3 . . . . . . . . . 1 . 272 Burn 9 | 4 1 4 . . . . . . . . . . . . . . . . . . . . Destroy 272 | . . . . . . . . . . . . . . . . . . . . . . 272 Smash 3 | . . . . 3 . . . . . . . . . . . . . . . . . . Sever 6 | . . . . . . . . 2 . 3 . . . . . . . . . 1 . . Melee Attacks 340 | . . . . 24 13 4 2 43 . 72 30 1 48 6 7 1 24 12 23 8 13 9 Impact 16 | . . . . 16 . . . . . . . . . . . . . . . . . . Slashing 324 | . . . . 8 13 4 2 43 . 72 30 1 48 6 7 1 24 12 23 8 13 9 Piercing . | . . . . . . . . . . . . . . . . . . . . . . . Sneak Attacks 35 | . . . . 4 2 2 . 8 . 10 2 . 4 . . . . 1 . 1 . 1 Combat Hostiles . | . . . . . . . . . . . . . . . . . . . . . . . Follow-up Attacks 1 | . . . . . . . . . . . . . . . . . . . . 1 . . Damage Inflicted 25702 | 516 1075 2288 978 633 271 231 255 1015 . 1422 299 . 483 . . . 301 124 48 186 . 15577 Guns 5765 | 516 692 2136 417 . . . . . . . . . . . . . . . . . . 2004 Cannons 3757 | . 383 . . . . . . . . . . . . . . . . . . . . 3374 Explosions 10728 | . . 126 513 . . . . . . . . . . . . . . . . . . 10089 Melee 5378 | . . . . 633 271 231 255 1015 . 1422 299 . 483 . . . 301 124 48 186 . 110 Ramming 74 | . . 26 48 . . . . . . . . . . . . . . . . . . . Kinetic 5788 | . 518 604 287 . . . . . . . . . . . . . . . . . . 4379 Thermal 3276 | 516 557 1074 130 . . . . . . . . . . . . . . . . . . 999 Explosive 10602 | . . . 513 . . . . . . . . . . . . . . . . . . 10089 Electromagnetic 584 | . . 584 . . . . . . . . . . . . . . . . . . . . Impact 509 | . . . . 509 . . . . . . . . . . . . . . . . . . Slashing 4869 | . . . . 124 271 231 255 1015 . 1422 299 . 483 . . . 301 124 48 186 . 110 Piercing . | . . . . . . . . . . . . . . . . . . . . . . . Highest Corruption 7 | . . 2 5 . . . . 4 6 7 1 1 1 1 1 1 . . . . . 7 Average Corruption 2 | . . 2 5 . . . . 2 6 6 1 1 1 1 1 1 . . . . . 3 Corruption Purged 16 | . . . . . . . . 4 . . . . . . . . . . . . . 12 Corruption Blocked . | . . . . . . . . . . . . . . . . . . . . . . . Effects 49 | . . 6 3 . . . . 1 . 17 5 1 2 2 1 . . . . . . 11 Message Errors 10 | . . . . . . . . . . 1 2 . 2 1 . . . . . . . 4 Matter Fused 13 | . . 4 2 . . . . . . 3 1 . . 1 1 . . . . . . 1 Heat Flow Errors 7 | . . . . . . . . 1 . 2 . 1 . . . . . . . . . 3 Energy Discharges 5 | . . 1 1 . . . . . . 3 . . . . . . . . . . . . Parts Rejected 1 | . . . . . . . . . . 1 . . . . . . . . . . . . Parts Fused 2 | . . 1 . . . . . . . 1 . . . . . . . . . . . . Data Loss (minor) 6 | . . . . . . . . . . 4 1 . . . . . . . . . . 1 Data Loss (major) 2 | . . . . . . . . . . 2 . . . . . . . . . . . . Alerts 1 | . . . . . . . . . . . 1 . . . . . . . . . . . Weapon Failures 2 | . . . . . . . . . . . . . . . . . . . . . . 2 Overload Shots . | . . . . . . . . . . . . . . . . . . . . . . . Overflow Damage 2682 | . 5 . 5 161 . 95 . 244 . 186 74 . 72 . . . 84 28 . . . 1728 Projectiles 41 | . 5 . . . . . . . . . . . . . . . . . . . . 36 Explosions 1697 | . . . 5 . . . . . . . . . . . . . . . . . . 1692 Melee 944 | . . . . 161 . 95 . 244 . 186 74 . 72 . . . 84 28 . . . . Knockbacks 30 | . 3 . . . . . . . . . . . . . . . . . . . . 27 Impact . | . . . . . . . . . . . . . . . . . . . . . . . Kinetic 29 | . 3 . . . . . . . . . . . . . . . . . . . . 26 Secondary 1 | . . . . . . . . . . . . . . . . . . . . . . 1 Self-Inflicted Damage 242 | . . 20 35 . . . . . . . . . . . . . . . . . . 187 Shots 4 | . . 1 1 . . . . . . . . . . . . . . . . . . 2 Rammed 7 | 1 . 3 3 . . . . . . . . . . . . . . . . . . . Targets Rammed 8 | 1 . 3 4 . . . . . . . . . . . . . . . . . . . Kicked . | . . . . . . . . . . . . . . . . . . . . . . . Crushed 1 | . . . 1 . . . . . . . . . . . . . . . . . . . Highest Temperature 328 | 195 213 180 . 4 11 1 . 255 . 195 226 235 218 186 194 23 328 78 116 88 . 213 Average Temperature 55 | 136 55 47 . 4 8 1 . 59 . 47 45 86 60 75 76 19 73 22 31 16 . 22 Received Heat Transfer 1249 | . 219 567 81 33 51 . . 9 . 27 46 . 21 9 12 21 . . . . . 153 Effects 4 | . 1 . . . . . . . . . . 3 . . . . . . . . . . Interference 4 | . 1 . . . . . . . . . . 3 . . . . . . . . . . Siege Activations . | . . . . . . . . . . . . . . . . . . . . . . . Martial Activations . | . . . . . . . . . . . . . . . . . . . . . . . Shielding Activations . | . . . . . . . . . . . . . . . . . . . . . . . Robots Disrupted . | . . . . . . . . . . . . . . . . . . . . . . . Combat Hostiles . | . . . . . . . . . . . . . . . . . . . . . . . Robots Corrupted 1 | . . . . 1 . . . . . . . . . . . . . . . . . . Combat Hostiles . | . . . . . . . . . . . . . . . . . . . . . . . Parts Fried 4 | . . 3 . 1 . . . . . . . . . . . . . . . . . . Impact Corruptions 6 | . . . . 6 . . . . . . . . . . . . . . . . . . Robots Melted 1 | . . 1 . . . . . . . . . . . . . . . . . . . . Combat Hostiles 1 | . . 1 . . . . . . . . . . . . . . . . . . . . Parts Melted 10 | 1 4 5 . . . . . . . . . . . . . . . . . . . . Heat Transferred 7221 | 1778 1585 2925 333 . . . . . . . . . . . . . . . . . . 600 Parts Sabotaged . | . . . . . . . . . . . . . . . . . . . . . . . Parts Stolen . | . . . . . . . . . . . . . . . . . . . . . . . Parts Stripped . | . . . . . . . . . . . . . . . . . . . . . . . Power Chain Reactions 4 | . . 4 . . . . . . . . . . . . . . . . . . . . Alert | -11 -10 -9 -8 -7 -7 -7 -7 -5 -5 -5 -4 -4 -4 -4 -4 -4 -3 -3 -3 -2 -2 -2 ------- Run | Yrd Mat Mat Mat Fac Sto Rec Scr Fac Was Fac Fac Was Fac Upp Upp War Pro Res Tes Res Qua Frg Maximum Alert Level 5 | . . 1 1 . . . . 1 . 1 . . 1 . . . . 2 1 . . 5 Low Security (%) 20 | 100 100 58 74 100 100 100 . 96 100 48 100 100 5 . . . . . 64 100 100 3 Level 1 6 | . . 41 25 . . . . 3 . 51 . . 94 . . . . 52 35 . . . Level 2 . | . . . . . . . . . . . . . . . . . . 47 . . . . Level 3 1 | . . . . . . . . . . . . . . . . . . . . . . 2 Level 4 5 | . . . . . . . . . . . . . . . . . . . . . . 7 Level 5 64 | . . . . . . . . . . . . . . . . . . . . . . 85 High Security . | . . . . . . . . . . . . . . . . . . . . . . . Max Security . | . . . . . . . . . . . . . . . . . . . . . . . Peak Influence 3278 | 10 85 324 251 54 138 79 . 242 99 334 153 40 369 . . . . 625 219 97 96 3278 Initial 600 | . . . 133 25 16 49 . . 84 62 151 . . . . . . 600 198 89 46 9 Average 2129 | 1 20 159 149 28 52 10 . 35 93 196 80 10 283 . . . . 465 185 87 59 2777 Influence Increases 8980 | 50 253 796 251 166 252 72 10 497 15 558 98 52 744 . 15 . 15 722 111 34 160 4109 Destroy 0b10 Robot/C 3220 | . 160 460 140 . . . . . . . . . 200 . . . . . . . . 2260 Destroy 0b10 Robot/NC 555 | 50 35 75 25 25 15 10 10 35 . 55 10 . 20 . . . 15 10 . 5 . 160 Destroy Leader 522 | . 58 130 36 6 4 . . 4 . 14 2 . 22 . . . . 2 . 2 . 242 Allied During Kill 74 | . . . . . . . . . . . . . 74 . . . . . . . . . Successful Hack 198 | . . 15 8 17 . . . 51 . 65 . . 23 . . . . . . . 4 15 Select Force Hacks 90 | . . 30 . . . 60 . . . . . . . . . . . . . . . . Disable Machine 870 | . . 30 15 45 30 . . 45 . 60 15 . 135 . . . . 15 75 . 60 345 Anti-Garrison Action 150 | . . . . . . . . . . . . . . . . . . . . . . 150 Destroy Structure 1231 | . . 11 27 13 8 2 . 62 . 94 56 52 180 . . . . 20 36 12 21 637 Advance Influence 600 | . . . . . . . . . . . . . . . . . . 600 . . . . Partial Spotted 405 | . . . . 15 45 . . 105 15 30 15 . 60 . . . . 45 . 15 15 45 Lose Combat Pursuer 1065 | . . 45 . 45 150 . . 195 . 240 . . 30 . 15 . . 30 . . 60 255 Influence Decreases 5702 | 50 253 480 509 188 160 200 10 255 168 337 408 52 442 193 124 . 15 370 304 110 227 847 Entered New Map 1061 | . . . 183 33 20 79 . . 158 27 159 . . 113 21 . . . 154 70 37 7 Time Decay 3942 | 50 253 470 326 145 140 42 10 235 10 310 229 52 262 80 103 . 15 70 150 40 180 770 Lost Part 100 | . . 10 . . . . . . . . 20 . . . . . . . . . . 70 Lost Ally 220 | . . . . 10 . . . 20 . . . . 180 . . . . . . . 10 . Purge Threat 379 | . . . . . . 79 . . . . . . . . . . . 300 . . . . Squads Dispatched 78 | . 2 4 1 3 . . . 11 . 12 9 . 13 . . . . 2 1 2 2 16 Investigation 50 | . . 3 1 2 . . . 9 . 10 7 . 8 . . . . 1 . . . 9 Extermination 12 | . . . . 1 . . . 1 . 2 1 . 2 . . . . 1 1 1 2 . Reinforcement 15 | . 2 1 . . . . . 1 . . 1 . 2 . . . . . . 1 . 7 Assault . | . . . . . . . . . . . . . . . . . . . . . . . Garrison 1 | . . . . . . . . . . . . . 1 . . . . . . . . . Intercept . | . . . . . . . . . . . . . . . . . . . . . . . Searches Triggered . | . . . . . . . . . . . . . . . . . . . . . . . Construction Impeded . | . . . . . . . . . . . . . . . . . . . . . . . Haulers Reinforced 2 | . . . . . . . . . . . . . 1 . . . . . . 1 . . Active Scanning Responses . | . . . . . . . . . . . . . . . . . . . . . . . Cargo Convoy Interrupts . | . . . . . . . . . . . . . . . . . . . . . . . Stealth | -11 -10 -9 -8 -7 -7 -7 -7 -5 -5 -5 -4 -4 -4 -4 -4 -4 -3 -3 -3 -2 -2 -2 --------- Run | Yrd Mat Mat Mat Fac Sto Rec Scr Fac Was Fac Fac Was Fac Upp Upp War Pro Res Tes Res Qua Frg Distress Signals 78 | . 1 1 . . 1 . . 1 . 1 3 . 1 . . . . 1 . . 2 66 Communications Jammed 2 | . . . . . . . . . . . . . . . . . . . . . . 2 Distress Signals 2 | . . . . . . . . . . . . . . . . . . . . . . 2 Times Spotted 364 | . 17 35 7 8 16 . . 18 4 19 13 6 16 2 4 14 3 11 4 . 5 162 Peak Tracking Total 18 | . 3 4 4 3 9 . . 8 4 9 10 6 4 2 4 18 2 9 2 . 6 14 Tactical Retreats 44 | . . 3 . 1 4 . . 4 . 7 2 1 3 1 2 . . 2 . . 1 13 ECM-based Alert Blocks 12 | . . . . . 2 . . . . . 3 . 2 2 3 . . . . . . . Traps | -11 -10 -9 -8 -7 -7 -7 -7 -5 -5 -5 -4 -4 -4 -4 -4 -4 -3 -3 -3 -2 -2 -2 ------- Run | Yrd Mat Mat Mat Fac Sto Rec Scr Fac Was Fac Fac Was Fac Upp Upp War Pro Res Tes Res Qua Frg Traps Triggered 30 | . 1 1 . . 3 . . 3 . 3 3 . 1 . . . . . . . . 15 Indirectly . | . . . . . . . . . . . . . . . . . . . . . . . Trap Hack Attempts . | . . . . . . . . . . . . . . . . . . . . . . . Triggered . | . . . . . . . . . . . . . . . . . . . . . . . Disarmed . | . . . . . . . . . . . . . . . . . . . . . . . Reprogrammed . | . . . . . . . . . . . . . . . . . . . . . . . Reused . | . . . . . . . . . . . . . . . . . . . . . . . Traps Extracted . | . . . . . . . . . . . . . . . . . . . . . . . Installed . | . . . . . . . . . . . . . . . . . . . . . . . Triggered . | . . . . . . . . . . . . . . . . . . . . . . . Machines | -11 -10 -9 -8 -7 -7 -7 -7 -5 -5 -5 -4 -4 -4 -4 -4 -4 -3 -3 -3 -2 -2 -2 ---------- Run | Yrd Mat Mat Mat Fac Sto Rec Scr Fac Was Fac Fac Was Fac Upp Upp War Pro Res Tes Res Qua Frg Machines Disabled 68 | . . 2 1 3 2 . . 3 . 4 1 . 9 1 . 1 . 1 6 . 4 30 Max in Single Turn 5 | . . 1 1 1 1 . . 1 . 1 1 . 1 1 . 1 . 1 1 . 1 5 Garrison Access 9 | . . . . 1 . . . 2 . 1 . . 3 . . . . . 1 . . 1 Machines Repaired . | . . . . . . . . . . . . . . . . . . . . . . . Machines Dismantled . | . . . . . . . . . . . . . . . . . . . . . . . Machines Sabotaged . | . . . . . . . . . . . . . . . . . . . . . . . Overloaded Fab Kills . | . . . . . . . . . . . . . . . . . . . . . . . Hacking | -11 -10 -9 -8 -7 -7 -7 -7 -5 -5 -5 -4 -4 -4 -4 -4 -4 -3 -3 -3 -2 -2 -2 --------- Run | Yrd Mat Mat Mat Fac Sto Rec Scr Fac Was Fac Fac Was Fac Upp Upp War Pro Res Tes Res Qua Frg Machines Accessed 115 | . 1 5 3 5 3 4 2 21 . 17 9 . 16 . . 2 . 4 6 2 3 12 Terminals 42 | . 1 3 1 2 3 1 . 7 . 7 1 . 4 . . . . 2 4 1 2 3 Fabricators 11 | . . . . 2 . . . 4 . . 1 . . . . . . . . . . 4 Repair Stations 3 | . . 1 . . . . . . . . 1 . 1 . . . . . . . . . Recycling Units 35 | . . 1 . . . 3 . 6 . 8 6 . 7 . . . . 1 . . . 3 Scanalyzers 10 | . . . 2 . . . . 2 . 1 . . 1 . . . . 1 1 . 1 1 Garrison Access 10 | . . . . 1 . . . 2 . 1 . . 3 . . . . . 1 1 . 1 Total Hacks 228 | . 5 13 9 18 5 8 7 46 . 29 12 . 24 . . 2 . 8 9 5 6 22 Successful 145 | . 1 7 7 6 4 5 7 29 . 21 12 . 18 . . 2 . 6 5 2 6 7 Failed 81 | . 4 6 1 12 1 3 . 16 . 8 . . 6 . . . . 2 4 3 . 15 Catastrophic 14 | . 1 1 . . . 1 . 1 . 1 . . 4 . . . . 1 . . . 4 Database Lockouts 2 | . . . 1 . . . . 1 . . . . . . . . . . . . . . Manual 114 | . 5 6 1 9 4 4 . 19 . 22 8 . 16 . . . . 5 3 . . 12 Terminals 96 | . 5 6 1 8 5 4 . 18 . 17 2 . 9 . . . . 6 6 3 3 3 Fabricators 32 | . . . . 8 . . . 13 . . 2 . . . . . . . . . . 9 Repair Stations 7 | . . 4 . . . . . . . . 2 . 1 . . . . . . . . . Recycling Units 45 | . . 3 . . . 4 . 9 . 9 6 . 7 . . . . 1 . . . 6 Scanalyzers 25 | . . . 8 . . . . 4 . 2 . . 3 . . . . 1 1 . 3 3 Garrison Access 14 | . . . . 2 . . . 2 . 1 . . 4 . . . . . 2 2 . 1 Terminal Hacks 46 | . 1 2 1 . 3 2 7 3 . 5 2 . 4 . . 2 . 4 2 2 3 3 Record 5 | . . . . . . . 2 . . . . . . . . . . . . . 2 1 Robot Analysis 5 | . . . . . . . 5 . . . . . . . . . . . . . . . Open Door 4 | . . . . . 2 . . . . . . . . . . 2 . . . . . . Level Access Points 2 | . . . . . . . . . . 1 . . 1 . . . . . . . . . Branch Access Points 1 | . . . . . . . . . . . . . . . . . . 1 . . . . Terminal Index 1 | . . . . . . . . . . . . . . . . . . . . . 1 . Recycling Unit Index 2 | . . . . . . . . . . 1 . . 1 . . . . . . . . . Alert Level 1 | . . . . . . . . . . . . . . . . . . . . 1 . . Unreport Threat 4 | . . . . . . 2 . . . . . . . . . . . 2 . . . . Locate Traps 4 | . . . . . . . . . . 1 1 . . . . . . 1 . . . 1 Recall Investigation 2 | . . . . . . . . 2 . . . . . . . . . . . . . . Recall Extermination 5 | . . . . . . . . . . 1 1 . 2 . . . . . 1 . . . Recall Reinforcements 1 | . . . . . . . . 1 . . . . . . . . . . . . . . Hauler Manifests 2 | . . 1 1 . . . . . . . . . . . . . . . . . . . Registered Components 1 | . . . . . . . . . . . . . . . . . . . . 1 . . Zone Layout 5 | . 1 1 . . 1 . . . . 1 . . . . . . . . 1 . . . Proto ID Catalog 1 | . . . . . . . . . . . . . . . . . . . . . . 1 Fabricator Hacks 11 | . . . . 2 . . . 8 . . 1 . . . . . . . . . . . Network Status 1 | . . . . . . . . 1 . . . . . . . . . . . . . . Load Schematic 7 | . . . . 1 . . . 5 . . 1 . . . . . . . . . . . Build 3 | . . . . 1 . . . 2 . . . . . . . . . . . . . . Repair Station Hacks 4 | . . 2 . . . . . . . . 2 . . . . . . . . . . . Scan Component 2 | . . 1 . . . . . . . . 1 . . . . . . . . . . . Repair 2 | . . 1 . . . . . . . . 1 . . . . . . . . . . . Recycling Unit Hacks 1 | . . 1 . . . . . . . . . . . . . . . . . . . . Retrieve Components 1 | . . 1 . . . . . . . . . . . . . . . . . . . . Scanalyzer 19 | . . . 6 . . . . 2 . 2 . . 3 . . . . 1 1 . 3 1 Insert Component 5 | . . . 2 . . . . . . . . . . . . . . . 1 . 2 . Analyze 2 | . . . 2 . . . . . . . . . . . . . . . . . . . Retrieve Study 12 | . . . 2 . . . . 2 . 2 . . 3 . . . . 1 . . 1 1 Garrison Access Hacks 8 | . . . . 1 . . . 2 . 1 . . 3 . . . . . 1 . . . Seal Access 8 | . . . . 1 . . . 2 . 1 . . 3 . . . . . 1 . . . Unauthorized Hacks 55 | . . 2 . 3 1 2 . 14 . 13 7 . 8 . . . . 1 1 . . 3 Terminals 14 | . . 1 . 2 1 . . 4 . 5 . . . . . . . . 1 . . . Track 2 | . . 1 . . 1 . . . . . . . . . . . . . . . . . Assimilate 5 | . . . . 1 . . . 2 . 1 . . . . . . . . 1 . . . Botnet 6 | . . . . 1 . . . 2 . 3 . . . . . . . . . . . . Operators 1 | . . . . . . . . . . 1 . . . . . . . . . . . . Fabricators 6 | . . . . 1 . . . 4 . . 1 . . . . . . . . . . . Prioritize 2 | . . . . . . . . 2 . . . . . . . . . . . . . . Recompile 4 | . . . . 1 . . . 2 . . 1 . . . . . . . . . . . Repair Stations 1 | . . . . . . . . . . . . . 1 . . . . . . . . . Patch 1 | . . . . . . . . . . . . . 1 . . . . . . . . . Recycling Units 34 | . . 1 . . . 2 . 6 . 8 6 . 7 . . . . 1 . . . 3 Tunnel 3 | . . 1 . . . 2 . . . . . . . . . . . . . . . . Fedlink 31 | . . . . . . . . 6 . 8 6 . 7 . . . . 1 . . . 3 Scanalyzers . | . . . . . . . . . . . . . . . . . . . . . . . Garrison Access . | . . . . . . . . . . . . . . . . . . . . . . . Data Cores Recovered 4 | . . . . . 1 . . 1 . 1 . . . . . . . 1 . . . . Used 1 | . . . . . . . . . . . . . . . . . . 1 . . . . Hacking Detections 51 | . 1 3 3 3 1 2 . 13 . 6 2 . 2 . . . . 1 4 2 1 7 Full Trace Events 8 | . . 1 1 1 . . . . . 1 . . . . . . . . . . . 4 Feedback Events 3 | . . . . . . . . . . 1 . . . . . . . . . . . 2 Corruption 3 | . . . . . . . . . . 1 . . . . . . . . . . . 2 Feedback Blocked . | . . . . . . . . . . . . . . . . . . . . . . . Robot Schematics Acquired 4 | . . . . . . . . . . . . . . . . . . . . . . 4 Robots Built . | . . . . . . . . . . . . . . . . . . . . . . . Authchips . | . . . . . . . . . . . . . . . . . . . . . . . Time . | . . . . . . . . . . . . . . . . . . . . . . . Total Robot Build Rating . | . . . . . . . . . . . . . . . . . . . . . . . Part Schematics Acquired 18 | . . . 2 . . . . . . . . . . . . . . . . . . 16 Parts Built 3 | . . . . 1 . . . 2 . . . . . . . . . . . . . . Authchips 2 | . . . . . . . . 2 . . . . . . . . . . . . . . Time 197 | . . . . 49 . . . 148 . . . . . . . . . . . . . . Total Part Build Rating 6 | . . . . 2 . . . 4 . . . . . . . . . . . . . . Part Studies Acquired 12 | . . . 2 . . . . 2 . 2 . . 3 . . . . 1 . . 1 1 Parts Repaired 2 | . . 1 . . . . . . . . 1 . . . . . . . . . . . Time 64 | . . 26 . . . . . . . . 38 . . . . . . . . . . . Parts Recycled . | . . . . . . . . . . . . . . . . . . . . . . . Recycled Matter . | . . . . . . . . . . . . . . . . . . . . . . . Retrieved Matter . | . . . . . . . . . . . . . . . . . . . . . . . Retrieved Components 7 | . . 7 . . . . . . . . . . . . . . . . . . . . Parts Scanalyzed 2 | . . . 2 . . . . . . . . . . . . . . . . . . . Part Schematics Acquired 2 | . . . 2 . . . . . . . . . . . . . . . . . . . Parts Damaged . | . . . . . . . . . . . . . . . . . . . . . . . Bothacking | -11 -10 -9 -8 -7 -7 -7 -7 -5 -5 -5 -4 -4 -4 -4 -4 -4 -3 -3 -3 -2 -2 -2 ------------ Run | Yrd Mat Mat Mat Fac Sto Rec Scr Fac Was Fac Fac Was Fac Upp Upp War Pro Res Tes Res Qua Frg Used RIF Installer . | . . . . . . . . . . . . . . . . . . . . . . . Robots Hacked 1 | . . . . . . . . 1 . . . . . . . . . . . . . . Non-combat 1 | . . . . . . . . 1 . . . . . . . . . . . . . . Combat . | . . . . . . . . . . . . . . . . . . . . . . . Robot Hacks Applied 1 | . . . . . . . . 1 . . . . . . . . . . . . . . find_chute 1 | . . . . . . . . 1 . . . . . . . . . . . . . . Relay Couplers Released 2 | . . . . . . . . 2 . . . . . . . . . . . . . . Machine Destruction 2 | . . . . . . . . 2 . . . . . . . . . . . . . . Fabnet Peak Effective % . | . . . . . . . . . . . . . . . . . . . . . . . Robots Rewired 5 | . . . . . . . . . . . . . . . . 5 . . . . . . Allies Hacked . | . . . . . . . . . . . . . . . . . . . . . . . Hacks Repelled . | . . . . . . . . . . . . . . . . . . . . . . . Allies | -11 -10 -9 -8 -7 -7 -7 -7 -5 -5 -5 -4 -4 -4 -4 -4 -4 -3 -3 -3 -2 -2 -2 -------- Run | Yrd Mat Mat Mat Fac Sto Rec Scr Fac Was Fac Fac Was Fac Upp Upp War Pro Res Tes Res Qua Frg Total Allies 27 | . . . . 1 . . . 2 . . . 18 . . . 5 . . 1 . . . Largest Group 18 | . . . . 1 . . . 1 . . . 18 10 . . 5 . . 1 1 1 . Highest-Rated Group 656 | . . . . 10 . . . 26 . . . 656 422 . . 274 . . 26 26 26 . Highest-Rated Ally 64 | . . . . 10 . . . 26 . . . 50 50 . . 64 . . 26 26 26 . Initial UFD Resources 132 | . . . . . . . . 37 59 59 79 101 101 115 115 115 119 119 129 132 132 132 Total Orders . | . . . . . . . . . . . . . . . . . . . . . . . Ally Attacks 187 | . . . . . . . . . . . . 108 79 . . . . . . . . . Total Damage 7929 | . . . . . . . . . . . . 5191 2738 . . . . . . . . . Kills 26 | . . . . . . . . . . . . 14 12 . . . . . . . . . Allies Corrupted . | . . . . . . . . . . . . . . . . . . . . . . . Allies Melted 24 | . . . . . . . . . . . . . 1 . . . . . . . . 23 Intel | -11 -10 -9 -8 -7 -7 -7 -7 -5 -5 -5 -4 -4 -4 -4 -4 -4 -3 -3 -3 -2 -2 -2 ------- Run | Yrd Mat Mat Mat Fac Sto Rec Scr Fac Was Fac Fac Was Fac Upp Upp War Pro Res Tes Res Qua Frg Active Infowar (turns) 30069 | 80 37 . . 253 285 147 377 757 21 690 482 143 577 168 295 339 361 142 307 95 361 24152 Optics 24359 | . . . . . . . . 589 21 489 . . . . . . . . . . . 23260 Sensors 5944 | . . . . 223 285 147 377 753 21 690 482 143 577 168 290 339 361 142 307 95 360 184 A.S.S. 23968 | . . . . . . . . . . . . . . . . . . . . . . 23968 Structural 3254 | . . . . . . . . . . 162 480 143 577 168 293 . 350 142 307 95 361 176 Traps 154 | . . . . . . . . 154 . . . . . . . . . . . . . . Seismic 117 | 80 37 . . . . . . . . . . . . . . . . . . . . . Machine Analysis 703 | . . . . 251 285 147 20 . . . . . . . . . . . . . . . Cloaking 20272 | . . . . . . . . . . . . . . . . . . . . . . 20272 Jamming 1197 | . . . . . . . . . . . . . . . . . . . . . . 1197 ECM 372 | . . . . 2 35 . . . . . 188 . 37 76 32 . . . . 2 . . Robot Analysis Total 5 | . . . . . . . 5 . . . . . . . . . . . . . . . Derelict Logs Recovered 2 | . . . . . . . . . . . . . . 1 1 . . . . . . . Drone Launches . | . . . . . . . . . . . . . . . . . . . . . . . Drone Recoveries . | . . . . . . . . . . . . . . . . . . . . . . . Exploration | -11 -10 -9 -8 -7 -7 -7 -7 -5 -5 -5 -4 -4 -4 -4 -4 -4 -3 -3 -3 -2 -2 -2 ------------- Run | Yrd Mat Mat Mat Fac Sto Rec Scr Fac Was Fac Fac Was Fac Upp Upp War Pro Res Tes Res Qua Frg Turns Passed 33514 | 266 869 1547 720 314 285 147 377 757 21 690 482 216 577 168 295 339 361 142 307 95 361 24178 Spaces Moved 23140 | 88 392 681 353 656 374 483 1192 1978 96 1643 1140 298 1447 446 581 837 554 415 723 307 460 7996 Core 20 | 16 . . . . . . . . . . . 4 . . . . . . . . . . Treads 1498 | 72 392 681 353 . . . . . . . . . . . . . . . . . . . Legs . | . . . . . . . . . . . . . . . . . . . . . . . Wheels . | . . . . . . . . . . . . . . . . . . . . . . . Hover 3335 | . . . . . . . . . . . . . . . . . . . . . . 3335 Flight 18287 | . . . . 656 374 483 1192 1978 96 1643 1140 294 1447 446 581 837 554 415 723 307 460 4661 Fastest Speed 7 | 50 160 160 160 28 28 28 28 19 22 19 19 22 19 19 19 15 22 15 22 15 8 7 Average Speed 32 | 140 160 160 163 28 28 28 28 24 22 21 22 31 21 21 21 21 24 21 22 19 14 22 Slowest Speed 700 | 160 160 160 166 29 28 28 28 26 22 22 94 700 22 22 22 95 92 22 22 22 15 120 Overloaded Moves 161 | . . . . . . . . 25 . 12 23 . 1 5 9 15 . 8 . . 9 54 Propulsion Burnouts . | . . . . . . . . . . . . . . . . . . . . . . . Robots Hopped 102 | . . . . 5 10 8 . 12 2 10 1 2 12 . . 1 . 3 8 1 1 26 Potential Cave-ins 6 | . . . . . . . . . . 2 . . . . . . 4 . . . . . Cave-ins Triggered . | . . . . . . . . . . . . . . . . . . . . . . . Teleports 1 | . . . . . . . . . . . . . . . . . . . . . . 1 Exploration Rate (%) 54 | 4 77 56 22 12 51 80 78 53 91 51 37 89 52 65 74 90 58 12 72 8 52 61 Regions Visited 22 Branch Regions 10 Pre-discovered Areas 6 | . . 1 . . . 2 1 1 . . . . . 1 . . . . . . . . Known Exits Taken 14 | . . . . 1 1 1 1 . . 1 . . 1 1 1 1 1 1 1 1 1 . Unknown Exits Taken 4 | 1 1 1 1 . . . . . . . . . . . . . . . . . . . Scrap Searched 8 | . . . . . . . 4 . . . . . . 1 2 . 1 . . . . . Spaces Dug 295 | . . . . 13 8 2 . 27 . 42 24 1 39 5 7 1 14 9 16 4 7 76 Terrain Destroyed 637 | . . 9 26 13 8 2 . 32 . 54 31 1 44 5 9 1 33 10 18 4 7 330 Melee 221 | . . . . 13 8 2 . 25 . 42 23 1 39 5 7 1 12 9 16 4 7 7 Projectile 145 | . . . . . . . . 7 . 12 8 . 5 . 2 . 21 1 2 . . 87 AOE 235 | . . 9 26 . . . . . . . . . . . . . . . . . . 200 Terrain Rammed . | . . . . . . . . . . . . . . . . . . . . . . . Walls Destroyed . | . . . . . . . . . . . . . . . . . . . . . . . Machines Disabled . | . . . . . . . . . . . . . . . . . . . . . . . Actions | -11 -10 -9 -8 -7 -7 -7 -7 -5 -5 -5 -4 -4 -4 -4 -4 -4 -3 -3 -3 -2 -2 -2 --------- Run | Yrd Mat Mat Mat Fac Sto Rec Scr Fac Was Fac Fac Was Fac Upp Upp War Pro Res Tes Res Qua Frg Total 47546 | 162 512 946 460 736 516 478 1232 2166 93 1835 1305 417 1612 504 730 990 720 441 825 329 732 29805 Wait 22394 | . 33 86 50 22 108 . 27 93 . 70 93 116 98 44 132 116 103 7 73 12 233 20878 Move 22926 | 87 391 680 352 645 354 468 1191 1954 92 1622 1138 294 1423 445 580 834 553 408 707 304 457 7947 Hop 90 | . . . . 5 9 6 . 12 1 10 1 1 11 . . 1 . 3 7 1 1 21 Pick Up 182 | 9 9 16 6 9 1 . 3 10 . 6 9 2 5 2 . 4 4 3 2 . 6 76 Fast Attach 93 | 7 3 7 3 8 2 . 2 6 . 3 2 . 1 . . . . . . 3 7 39 Attach 120 | . 1 4 2 2 . . 2 6 . . 4 1 . . . 1 2 2 . 1 2 90 Detach 90 | . 1 2 . . . . 2 2 . 2 1 1 . . . . 2 . . . . 77 Swap 177 | . 4 16 8 5 4 . . 8 . 17 13 . 15 5 9 7 7 4 6 . 2 47 Drop 220 | 1 7 29 13 16 3 . 3 9 . 5 6 1 6 2 . 6 4 1 4 1 11 92 Fire 725 | 57 63 103 22 . . . . 8 . 12 8 . 5 . 2 1 21 1 3 . . 419 Melee 339 | . . . . 24 13 4 2 43 . 72 30 1 48 6 7 1 24 12 23 7 13 9 Ram . | . . . . . . . . . . . . . . . . . . . . . . . Kick . | . . . . . . . . . . . . . . . . . . . . . . . Crush 8 | 1 . 3 4 . . . . . . . . . . . . . . . . . . . Escape Stasis 163 | . . . . . 22 . . 15 . 16 . . . . . . . . . . . 110 Rewire 19 | . . . . . . . . . . . . . . . . 19 . . . . . . Trap . | . . . . . . . . . . . . . . . . . . . . . . . Miscellaneous . | . . . . . . . . . . . . . . . . . . . . . . . Route ------- -11/Scrapyard -10/Materials (discovered 5 exits: *Mat x3 / [*Min x2]) -9/Materials (discovered 4 exits: *Mat x2 / [*Min x2]) -8/Materials -7/Factory -7/Storage -7/Recycling (discovered 2 exits: *Fac / *Scr) -7/Scraptown -5/Factory (discovered 3 exits: *Fac x2 / *Upp) -5/Waste -5/Factory (discovered 5 exits: *Fac x4 / [*Ext]) -4/Factory (discovered 2 exits: *Res / *Upp) -4/Waste -4/Factory (discovered 6 exits: *Res x4 / *Upp x2) -4/Upper Caves -4/Upper Caves -4/Warlord -3/Proximity Caves -3/Research (discovered 3 exits: Arm / *Tes x2) -3/Testing -2/Research -2/Quarantine (discovered 2 exits: [*Sec] / *Frg) -2/Protoforge 0bPrime History --------- Turn | Location | Event 6 | -11/Scrapyard | Discovered new exit (range 15) 267 | -11/Scrapyard | Entered Materials 267 | -10/Materials | Discovered new exit (range 7) 316 | -10/Materials | Build established: Mutant 532 | -10/Materials | Discovered new exit (range 16) 775 | -10/Materials | Discovered new exit (range 14) 942 | -10/Materials | Discovered new exit (range 8) 1099 | -10/Materials | Discovered new exit (range 16) 1136 | -10/Materials | Entered another Materials area 1136 | -9/Materials | Evolved 2 slots: Propulsion x1, Utility x1 1476 | -9/Materials | Repaired Lgt. Treads 1695 | -9/Materials | Discovered new exit (range 4) 1911 | -9/Materials | Discovered new exit (range 15) 2314 | -9/Materials | Discovered new exit (range 14) 2664 | -9/Materials | Discovered new exit (range 10) 2683 | -9/Materials | Entered another Materials area 2683 | -8/Materials | Evolved 2 slots: Propulsion x1, Utility x1 2723 | -8/Materials | Central database locked down 3033 | -8/Materials | Discovered new exit (range 10) 3403 | -8/Materials | Entered Factory 3403 | -7/Factory | Evolved 2 slots: Utility x2 3432 | -7/Factory | Discovered new exit (range 8) 3437 | -7/Factory | Identified exit to Storage 3593 | -7/Factory | Fabricated Imp. Flight Unit? 3717 | -7/Factory | Entered Storage 3790 | -7/Storage | Build established: Hacker-Scout 4001 | -7/Storage | Used back door to open Recycling access 4001 | -7/Storage | Discovered new exit (range 5) 4002 | -7/Storage | Identified exit to Recycling 4002 | -7/Storage | Entered Recycling 4062 | -7/Recycling | Discovered new exit (range 6) 4143 | -7/Recycling | Scanned before Scraplab entrance 4147 | -7/Recycling | Entered Scraplab 4149 | -7/Recycling | Discovered new exit (range 2) 4149 | -7/Recycling | Identified exit to Scraptown 4149 | -7/Recycling | Entered Scraptown 4158 | -7/Scraptown | Visited Spacefarers 4160 | -7/Scraptown | Visited Bundlers 4183 | -7/Scraptown | Visited Cyclists 4188 | -7/Scraptown | Visited CPS Storage 4190 | -7/Scraptown | Visited Science Testing Area 4194 | -7/Scraptown | Visited Red Mages 4197 | -7/Scraptown | Visited UFD Registry 4197 | -7/Scraptown | Registered with UFD as "Nukewarp" 4219 | -7/Scraptown | Entered Cyclist Reading Room 4252 | -7/Scraptown | Heard Great Nut preacher, LISTEN AND RECITE! 4294 | -7/Scraptown | Visited Botcube Research 4299 | -7/Scraptown | Visited Observation Area 4303 | -7/Scraptown | Visited Chapter 10 4307 | -7/Scraptown | Visited Science Guys 4310 | -7/Scraptown | Visited Scrapoid Research Area 4313 | -7/Scraptown | Visited Research Penetration Think Tank 4319 | -7/Scraptown | Visited Curators Association 4328 | -7/Scraptown | Visited Analyses Database 4334 | -7/Scraptown | Visited A0-MCA Data Center 4455 | -7/Scraptown | Build established: Hacker-Sprinter 4460 | -7/Scraptown | Visited Assassins FH 4479 | -7/Scraptown | Given an A- rating by A0-MCA 4481 | -7/Scraptown | Found A0-MCA's Component Scanner 4509 | -7/Scraptown | Met Optimus 4509 | -7/Scraptown | Accepted into 0bPrime 4526 | -7/Scraptown | Discovered new exit (range 3) 4526 | -7/Scraptown | Identified exit to Factory 4526 | -7/Scraptown | Entered Factory 4526 | -5/Factory | Evolved 4 slots: Power x1, Propulsion x2, Utility x1 4609 | -5/Factory | Fabricated Imp. Flight Unit (x1) 4770 | -5/Factory | Discovered new exit (range 4) 4771 | -5/Factory | Identified exit to Factory 4777 | -5/Factory | Loaded intel: 8 recycling unit locations 4813 | -5/Factory | Fabricated Imp. Flight Unit (x1) 4828 | -5/Factory | Learned location of Protoforge (-2) 4834 | -5/Factory | Spotted B-75 Beast 4845 | -5/Factory | Discovered exit to Factory (range 5) 5006 | -5/Factory | Build established: Hacker-Scout 5104 | -5/Factory | Noticed UFD Elites at a Recycling Unit 5122 | -5/Factory | Discovered new exit (range 6) 5123 | -5/Factory | Identified exit to Upper Caves 5209 | -5/Factory | Central database locked down 5283 | -5/Factory | Manually triggered Chute Trap 5283 | -5/Factory | Sucked down chute 5283 | -5/Factory | Entered Waste 5287 | -5/Waste | Spotted C-40 Crusher 5293 | -5/Waste | Spotted C-40 Crusher 5295 | -5/Waste | Spotted C-40 Crusher 5298 | -5/Waste | EMP discharged 5299 | -5/Waste | Spotted C-40 Crusher 5302 | -5/Waste | Discovered new exit (range 14) 5304 | -5/Waste | Identified exit to Factory 5304 | -5/Waste | Entered Factory 5396 | -5/Factory | Loaded intel: 8 recycling unit locations 5566 | -5/Factory | Discovered exit to Factory (range 15) 5700 | -5/Factory | Discovered exit to Factory (range 18) 5817 | -5/Factory | Discovered new exit (range 15) 5994 | -5/Factory | Entered another Factory area 5994 | -4/Factory | Evolved 2 slots: Utility x2 6007 | -4/Factory | Loaded intel: 8 recycling unit locations 6105 | -4/Factory | Discovered new exit (range 14) 6112 | -4/Factory | Identified exit to Upper Caves 6254 | -4/Factory | Repaired Imp. Light Armor Plating 6415 | -4/Factory | Discovered new exit (range 10) 6420 | -4/Factory | Identified exit to Research 6476 | -4/Factory | Manually triggered Chute Trap 6476 | -4/Factory | Sucked down chute 6476 | -4/Factory | Entered Waste 6478 | -4/Waste | Spotted C-40 Crusher 6479 | -4/Waste | Found Point Singularity Launcher 6484 | -4/Waste | Spotted C-40 Crusher 6491 | -4/Waste | Discovered new exit (range 10) 6517 | -4/Waste | Spotted C-40 Crusher 6517 | -4/Waste | Spotted C-40 Crusher 6519 | -4/Waste | Spotted C-40 Crusher 6523 | -4/Waste | Spotted C-40 Crusher 6533 | -4/Waste | Warlord forces began an assault 6550 | -4/Waste | Allies destroyed C-40 Crusher 6553 | -4/Waste | Allies destroyed C-40 Crusher 6558 | -4/Waste | Allies destroyed C-40 Crusher 6569 | -4/Waste | Allies destroyed C-40 Crusher 6600 | -4/Waste | Lost 8 allies 6633 | -4/Waste | Identified exit to Factory 6692 | -4/Waste | Entered Factory 6692 | -4/Factory | Accompanied by 10 allies 6716 | -4/Factory | Garrison activated, responded to threat 6767 | -4/Factory | Lost 4 allies 6780 | -4/Factory | Found Exp. Signal Interpreter 6791 | -4/Factory | Watched by a mysterious "MATRIX" hacker 6825 | -4/Factory | Loaded intel: 8 recycling unit locations 6849 | -4/Factory | Discovered exit to Upper Caves (range 5) 7008 | -4/Factory | Discovered exit to Research (range 5) 7266 | -4/Factory | Discovered exit to Upper Caves (range 5) 7269 | -4/Factory | Entered Upper Caves 7276 | -4/Upper Caves | Encountered a Warlord checkpoint 7332 | -4/Upper Caves | Spotted B-86 Titan 7332 | -4/Upper Caves | Learned location of Testing (-3) 7377 | -4/Upper Caves | Found Alien Artifact 7384 | -4/Upper Caves | Discovered new exit (range 13) 7386 | -4/Upper Caves | Identified exit to Upper Caves 7437 | -4/Upper Caves | Entered another Upper Caves area 7439 | -4/Upper Caves | Spotted B-86 Titan 7506 | -4/Upper Caves | Learned 8 Research zone layouts 7577 | -4/Upper Caves | Encountered a Warlord checkpoint 7710 | -4/Upper Caves | Discovered new exit (range 8) 7712 | -4/Upper Caves | Identified exit to Warlord 7732 | -4/Upper Caves | Entered Warlord 7740 | -4/Warlord | System corruption cleaned by Quarantine Array 7822 | -4/Warlord | Visited the Vortex Lab 7823 | -4/Warlord | Found Vortex Rail 7831 | -4/Warlord | Warlord's base attacked by MAIN.C 8042 | -4/Warlord | Opened side exit 8060 | -4/Warlord | Spotted B-90 Cyclops 8062 | -4/Warlord | Discovered new exit (range 12) 8065 | -4/Warlord | Identified exit to Proximity Caves 8071 | -4/Warlord | Entered Proximity Caves 8113 | -3/Proximity Caves | Spotter reported a threat 8113 | -3/Proximity Caves | Spotter reported a threat 8166 | -3/Proximity Caves | Spotter reported a threat 8223 | -3/Proximity Caves | Spotter reported a threat 8416 | -3/Proximity Caves | Discovered exit to Research (range 14) 8432 | -3/Proximity Caves | Entered Research 8432 | -3/Research | Evolved 2 slots: Propulsion x1, Utility x1 8469 | -3/Research | Loaded intel: 5 recycling unit locations 8499 | -3/Research | Identified exit to Armory 8499 | -3/Research | Identified exit to Testing 8574 | -3/Research | Entered Testing 8583 | -3/Testing | Found 2N-1CE's Frost Array 8641 | -3/Testing | Discovered new exit (range 11) 8648 | -3/Testing | Found Ghost Barrier 8657 | -3/Testing | Identified exit to Research 8748 | -3/Testing | Found Perforator 8881 | -3/Testing | Entered Research 8881 | -2/Research | Accompanied by 1 ally 8881 | -2/Research | Evolved 2 slots: Propulsion x1, Utility x1 8888 | -2/Research | Discovered new exit (range 6) 8891 | -2/Research | Identified exit to Quarantine 8976 | -2/Research | Entered Quarantine 8976 | -2/Quarantine | Accompanied by 1 ally 9005 | -2/Quarantine | Found Alien Artifact 9005 | -2/Quarantine | Identified Phase Redirector 9021 | -2/Quarantine | Found Alien Artifact 9021 | -2/Quarantine | Identified Dimensional Node Initializer (x2) 9021 | -2/Quarantine | Initialized slip node 9026 | -2/Quarantine | Found Alien Artifact 9042 | -2/Quarantine | Identified Hpw. Transdimensional Reconstructor 9050 | -2/Quarantine | Found Alien Artifact 9051 | -2/Quarantine | Identified Subatomic Replicator 9051 | -2/Quarantine | Used Subatomic Replicator to create Alien Artifact 9056 | -2/Quarantine | Identified Supercharged TR 9102 | -2/Quarantine | Found Alien Energy Cannon 9102 | -2/Quarantine | Identified Core Cannon 9144 | -2/Quarantine | Spotted Fortress 9167 | -2/Quarantine | Discovered new exit (range 5) 9167 | -2/Quarantine | Discovered new exit (range 6) 9170 | -2/Quarantine | Identified exit to Protoforge 9337 | -2/Quarantine | Entered Protoforge 9350 | -2/Protoforge | Superfortress began startup sequence 9362 | -2/Protoforge | Spotted B-90 Cyclops 9414 | -2/Protoforge | Spotted AP7-3 9416 | -2/Protoforge | Spotted AP7-3 9442 | -2/Protoforge | UFD initiated attack on Protoforge (Readiness: Maximal) 9442 | -2/Protoforge | Loaded intel: 3 recycling unit locations 9476 | -2/Protoforge | Spotted Overlord 9478 | -2/Protoforge | Optimus greeted in Protoforge 9489 | -2/Protoforge | Spotted Decapitator 9490 | -2/Protoforge | Spotted Decapitator 9503 | -2/Protoforge | Found Exp. Core Analyzer 9506 | -2/Protoforge | Found Cep. XC Strikerail 9507 | -2/Protoforge | Found Cep. XC Strikerail 9517 | -2/Protoforge | Initialized slip node 9526 | -2/Protoforge | Lost 15 allies 9532 | -2/Protoforge | Warped through subspace to slip node 9533 | -2/Protoforge | Optimus attacked Superfortress 9533 | -2/Protoforge | Spotted Executioner 9539 | -2/Protoforge | Destroyed Executioner 9548 | -2/Protoforge | Spotted Immortal 9548 | -2/Protoforge | Found Exp. Active Sensor Suite 9554 | -2/Protoforge | Found Cep. XC Strikerail 9563 | -2/Protoforge | Lost 5 parts (1p1n3u) 9571 | -2/Protoforge | Found Cep. Plasma Driver 9578 | -2/Protoforge | Found Cep. Zero-point Core 9580 | -2/Protoforge | Found Null Cannon 9582 | -2/Protoforge | Found Exp. Core Analyzer 9585 | -2/Protoforge | Lost 17 allies 9593 | -2/Protoforge | Forge Plexus network access discovered 9596 | -2/Protoforge | Found Cep. NT7 Matterbank 9624 | -2/Protoforge | Found Exp. Targeting Computer 9627 | -2/Protoforge | Found Exp. Transmission Jammer 9660 | -2/Protoforge | Spotted Striker 9873 | -2/Protoforge | Spotted Striker 9951 | -2/Protoforge | Spotted Striker 10090 | -2/Protoforge | Spotted Hotshot 10100 | -2/Protoforge | Spotted Hotshot 10107 | -2/Protoforge | Spotted Hotshot 10109 | -2/Protoforge | Lost 3 allies 10109 | -2/Protoforge | Spotted Hotshot 10114 | -2/Protoforge | Destroyed Hotshot 10126 | -2/Protoforge | Spotted Executioner 10144 | -2/Protoforge | Spotted Striker 10163 | -2/Protoforge | Spotted Striker 10165 | -2/Protoforge | Destroyed Executioner 10165 | -2/Protoforge | Spotted Striker 10169 | -2/Protoforge | Destroyed Striker 10180 | -2/Protoforge | Triborg destroyed during the operation 10180 | -2/Protoforge | Optimus emerged from Triborg 10186 | -2/Protoforge | Destroyed Striker 10236 | -2/Protoforge | Destroyed 10 combat bots 10257 | -2/Protoforge | UFD reported confirmed Drillbomb installation 10315 | -2/Protoforge | Spotted Executioner 10318 | -2/Protoforge | Destroyed Executioner 10324 | -2/Protoforge | Spotted Executioner 10327 | -2/Protoforge | Destroyed Executioner 10364 | -2/Protoforge | Spotted Striker 10369 | -2/Protoforge | Spotted Striker 10369 | -2/Protoforge | UFD reported confirmed Drillbomb installation 10370 | -2/Protoforge | Destroyed Striker 10395 | -2/Protoforge | Destroyed Hotshot 10406 | -2/Protoforge | Spotted Hotshot 10424 | -2/Protoforge | Spotted Hotshot 10426 | -2/Protoforge | Destroyed Hotshot 10429 | -2/Protoforge | Spotted Hotshot 10431 | -2/Protoforge | Destroyed Hotshot 10432 | -2/Protoforge | Spotted Hotshot 10434 | -2/Protoforge | Destroyed Hotshot 10459 | -2/Protoforge | Found Cep. Core Shell 10464 | -2/Protoforge | Spotted Immortal 10464 | -2/Protoforge | Spotted Immortal 10496 | -2/Protoforge | Destroyed Immortal 10542 | -2/Protoforge | Destroyed Immortal 10552 | -2/Protoforge | Spotted Hotshot 10553 | -2/Protoforge | Destroyed Hotshot 10565 | -2/Protoforge | Spotted Hotshot 10566 | -2/Protoforge | Destroyed Hotshot 10620 | -2/Protoforge | Spotted Decapitator 10620 | -2/Protoforge | Spotted Decapitator 10620 | -2/Protoforge | Spotted Decapitator 10731 | -2/Protoforge | Spotted Decapitator 10731 | -2/Protoforge | Spotted V518-b 10731 | -2/Protoforge | Spotted V737-l 10770 | -2/Protoforge | Spotted V517-j 10770 | -2/Protoforge | Spotted V003-y 10770 | -2/Protoforge | Spotted V453-j 10830 | -2/Protoforge | Spotted Immortal 10833 | -2/Protoforge | Spotted Immortal 10895 | -2/Protoforge | Destroyed Immortal 10901 | -2/Protoforge | Spotted Decapitator 10901 | -2/Protoforge | Spotted Decapitator 10901 | -2/Protoforge | Spotted Decapitator 10901 | -2/Protoforge | Spotted Decapitator 10902 | -2/Protoforge | Found Cep. Antimissile System 10908 | -2/Protoforge | Destroyed Immortal 10952 | -2/Protoforge | Destroyed V737-l 10952 | -2/Protoforge | Destroyed Decapitator 10972 | -2/Protoforge | Destroyed V518-b 10977 | -2/Protoforge | Destroyed Decapitator 10988 | -2/Protoforge | Found Prototype Device 10988 | -2/Protoforge | Identified Exp. Shield Generator 10993 | -2/Protoforge | Found Prototype Protection 10993 | -2/Protoforge | Identified Med. Regenerative Plating 10996 | -2/Protoforge | Found Spectral Analyzer 11007 | -2/Protoforge | UFD reported confirmed Drillbomb installation 11009 | -2/Protoforge | Found Cep. Antigrav Storage Unit 11011 | -2/Protoforge | Found Cep. Antigrav Storage Unit 11034 | -2/Protoforge | Found Faulty Cep. Tiamat Rocket Array 11036 | -2/Protoforge | Found Cep. Smart ZDS 11037 | -2/Protoforge | Found Cep. Rapid Grenade Launcher 11044 | -2/Protoforge | Found Crosscalibrator 11049 | -2/Protoforge | Spotted V847-d 11152 | -2/Protoforge | Spotted AP7-3 11167 | -2/Protoforge | Spotted AP7-3 11214 | -2/Protoforge | Build established: Scavenger-Scout 11368 | -2/Protoforge | Found Exp. System Purifier 11405 | -2/Protoforge | Core integrity fell below 50% 11406 | -2/Protoforge | Spotted Executioner 11420 | -2/Protoforge | Spotted Executioner 11422 | -2/Protoforge | Destroyed Executioner 11498 | -2/Protoforge | Found Exp. Target Analyzer 11501 | -2/Protoforge | Spotted Executioner 11505 | -2/Protoforge | UFD reported confirmed Drillbomb installation 11505 | -2/Protoforge | Found Exp. Core Analyzer 11507 | -2/Protoforge | Found Exp. Core Analyzer 11518 | -2/Protoforge | Lost 5 allies 11580 | -2/Protoforge | Found Exp. EM Shield 11600 | -2/Protoforge | Spotted Executioner 11600 | -2/Protoforge | Spotted Striker 11690 | -2/Protoforge | Spotted Executioner 11717 | -2/Protoforge | Found Exp. System Purifier 11794 | -2/Protoforge | Spotted Executioner 11930 | -2/Protoforge | Destroyed AP7-3 11949 | -2/Protoforge | Found Cep. Cloak Mesh 11950 | -2/Protoforge | Found Cep. Thermoelectric Network 11952 | -2/Protoforge | Found Faulty Cep. Cloak Mesh 12195 | -2/Protoforge | Found Faulty Cep. Combat Aerolev Unit 12199 | -2/Protoforge | Found Faulty Cep. Gyrokinetic System 12220 | -2/Protoforge | Found Faulty Cep. Gyrokinetic System 12224 | -2/Protoforge | Found Faulty Cep. Gyrokinetic System 12272 | -2/Protoforge | Found Faulty Cep. Combat Aerolev Unit 12398 | -2/Protoforge | Found Faulty Cep. Zero-point Core 12482 | -2/Protoforge | Found Cep. Gyrokinetic System 12512 | -2/Protoforge | Spotted V542-w 12543 | -2/Protoforge | Spotted Striker 12567 | -2/Protoforge | Spotted Striker 12579 | -2/Protoforge | Destroyed Striker 12582 | -2/Protoforge | Destroyed Striker 12601 | -2/Protoforge | Destroyed V847-d 12611 | -2/Protoforge | Found Exp. Weapon Cycler 12613 | -2/Protoforge | Spotted Executioner 12646 | -2/Protoforge | Spotted Executioner 12671 | -2/Protoforge | Spotted Striker 12854 | -2/Protoforge | Spotted Striker 12877 | -2/Protoforge | Spotted Striker 12878 | -2/Protoforge | Destroyed Striker 12880 | -2/Protoforge | Spotted Striker 12883 | -2/Protoforge | Destroyed Striker 12926 | -2/Protoforge | Destroyed Decapitator 12937 | -2/Protoforge | Destroyed Decapitator 12939 | -2/Protoforge | Destroyed Decapitator 12978 | -2/Protoforge | Found Exp. Active Sensor Suite 12996 | -2/Protoforge | Found Faulty Cep. Tiamat Rocket Array 13024 | -2/Protoforge | Destroyed V542-w 13038 | -2/Protoforge | Found Prototype Processor 13038 | -2/Protoforge | Identified Exp. Armor Integrity Analyzer 13054 | -2/Protoforge | Found Cep. Core Shell 13100 | -2/Protoforge | Found Cep. Matter Streamer 13179 | -2/Protoforge | Found Cep. Phase Shift Module 13184 | -2/Protoforge | Found Cep. Gyrokinetic System 13325 | -2/Protoforge | Lost 3 allies 13399 | -2/Protoforge | Found Cep. Zero-point Core 13444 | -2/Protoforge | Destroyed Decapitator 13458 | -2/Protoforge | Destroyed Decapitator 13458 | -2/Protoforge | Destroyed Decapitator 13458 | -2/Protoforge | Destroyed Decapitator 13537 | -2/Protoforge | Spotted Striker 13562 | -2/Protoforge | Spotted Executioner 13569 | -2/Protoforge | Destroyed Executioner 13591 | -2/Protoforge | Destroyed Executioner 13602 | -2/Protoforge | Spotted Striker 13619 | -2/Protoforge | Destroyed 7 combat bots 13637 | -2/Protoforge | Lost 3 allies 13661 | -2/Protoforge | Spotted Striker 13662 | -2/Protoforge | Spotted Striker 13665 | -2/Protoforge | Destroyed Striker 13681 | -2/Protoforge | Spotted Executioner 13705 | -2/Protoforge | Spotted Striker 13707 | -2/Protoforge | Lost 3 allies 13711 | -2/Protoforge | P-80 Master assimilated allied 02FNR-D 13713 | -2/Protoforge | Destroyed Striker 13716 | -2/Protoforge | Spotted Striker 13755 | -2/Protoforge | Lost 4 allies 13850 | -2/Protoforge | Spotted Executioner 13850 | -2/Protoforge | Spotted Striker 13850 | -2/Protoforge | Spotted Striker 13853 | -2/Protoforge | Destroyed Striker 13862 | -2/Protoforge | Destroyed Striker 13875 | -2/Protoforge | Destroyed Executioner 13876 | -2/Protoforge | Spotted Striker 13896 | -2/Protoforge | Destroyed 7 combat bots 13931 | -2/Protoforge | Lost 13 allies 13951 | -2/Protoforge | Found Exp. System Purifier 13995 | -2/Protoforge | Found Exp. System Purifier 14010 | -2/Protoforge | Spotted Executioner 14857 | -2/Protoforge | Spotted Executioner 14865 | -2/Protoforge | Spotted Striker 14880 | -2/Protoforge | Found Exp. Terror Saw 14895 | -2/Protoforge | Lost 3 allies 15179 | -2/Protoforge | Build established: Scavenger-Ninja 15876 | -2/Protoforge | UFD reported confirmed Drillbomb installation 17274 | -2/Protoforge | Build established: Scavenger-Scout 18115 | -2/Protoforge | UFD reported confirmed Drillbomb installation 18900 | -2/Protoforge | UFD reported confirmed Drillbomb installation 25189 | -2/Protoforge | UFD reported confirmed Drillbomb installation 31247 | -2/Protoforge | UFD reported confirmed Drillbomb installation 33415 | -2/Protoforge | UFD reported confirmed Drillbomb installation 33416 | -2/Protoforge | UFD began Drillbomb countdown 33486 | -2/Protoforge | Spotted Striker 33488 | -2/Protoforge | Spotted Striker 33491 | -2/Protoforge | Destroyed Striker 33497 | -2/Protoforge | Destroyed Striker 33516 | *** | Defending 0bPrime! Last Messages --------------- glory, directed away from ourselves, of course. 33509_ Acquired 188 matter. 33509_ N-04 Retriever inserts Hvy. Armor Plating into Forge Plexus. 33509_ N-04 Retriever inserts Scrap Suit into Forge Plexus. 33510_ The unstable cave ceiling collapses. 33510_ 0bP_NET: Time for our final countdown to an explosive victory... 33511_ The unstable cave ceiling collapses. 33511_ 109 Matter crushed. 33511_ 0bP_NET: 5! 33512_ 0bP_NET: 4! 33513_ 0bP_NET: 3! 33514_ The unstable cave ceiling collapses. 33514_ 0bP_NET: If you're in the wrong place at the wrong time, the wrong time being in just a moment, I'm sorry but prepare to die. 33515_ The unstable cave ceiling collapses. 33515_ 0bP_NET: Otherwise, enjoy the show! 33515_ N-04 Retriever destroyed. 33516_ The unstable cave ceiling collapses. 33516_ 638 Matter crushed. [Achievement: Collector] Map ----- +----------------------------------------------------+ | *%%%%%%!%%%%%%%%%%%%%%%%%% % % % %"""""""""""" | | %%%%%%!%*%%%%%%%%%%%%%%%%%%%% % % %"""""""""""" | | %*%%%%%!%%%!!/*!%%%%%%%%%%%%%%% % """"""""""""" | | %[!=!!%!%%%%=== %% %%%%%%%%%%%%% %"""""""""""" | | %=!%==[[%%%=!! * %%%%%%%%%% % %%"""""""""""" | | %![ !!*%%%*[=! ! %%%%%%%%%%% %%% % """"""""""" | | |===[/%==%*|!!=!! %%%%%%%%%% %% % %""""""""""" | | %!*%=!%!=%%%!=/ % %%%!%%%%%%%% % % """"""""""" | | % =%=%"=% %[ *%= %% !%%%%%%%%%%%%%% %%%"""""""""" | | %%%=*%!/%%%%%%!%%%%=%=%%%%%% %%%%=%% % %""""""""" | | =!=%!%! %%%%%%%%!%%%=%%%%=% %%%%%%%%% %"""""""" | | /=**%[!%%%%%%%%%%%%%#%%%%%% % %%%% %% % """"""" | | !!*!=[%%% %%%n%%%%%#=%%%*%% %!!% %% %% % %%"""""" | | !=[=!*!/%%%%%%%%%%% %%%%%%%%% [ % % %%%%""""" | | !=*!!= %% % % %% %%%%%%%%%%%%%%% % % %%% "" | | ["!![ % %% *!%=*[ % %%%%%%%%%%%%%% %%% %% % % % | | =*=%%% %%%[%%%[ %*%%%%%%%%%%%%%% % %% %%% "%% | | !="=%%% %%=%==% ! %% %%%|%%%%%%% %=% %% % | | !#! %% %%%%%%%%[ ![! %%%%%%%=%%%%%%=* % %%%%%%% % | | !#![ %%% %%%%%%=%= % %%%%% %!%%%[ %%==! %[%E""= | | =[*= %%%%=%%% ## # %%%%%%%!%%%%%%! %* %!%% s%% | | "*=*/ % %%% %%% % %%% %%%%%!*%%*! *=%*%% | | "![!* %% %[% % %%% % %% %%%= %![=!%% = %= % | | !* [! %% % %%%%% % % = %%! | | [[% % = %%%% %%% % ! " % | | != %%% % %%%%% @ %! " " | | [% % % %%% = = | | =[ % %%%%%%% % # %m | | !*= %%%%%%% %% # "" " "" | | [=[%%%%%% %%% # " | | [!| %%%%% % % # ####### ################### | | #!*!%%%%%== %% ??????####???????????""""""" | | [/![ %% ==%! % = [???????????????????????????? | | !?!=#%% !!!%[ * ???????????????????????????? | | !*[!=%% %!*% ???????????????????????????? | | =*=!!%%%!"% % ???????????????????????????? | | *=![?=%%! # # #???????????????????????????? | | ![=[?=%% % # #???????????????????????????? | | [ =%[% %; ????????????????????????????? | | ! !*[? %[ # ###????????????????????????????? | | ==/ %=[! % # # ###???????????????????????????????? | | !!#=][ ?* # ##########???????????????????????????? | | ==[*[ =?"#;###########???????????????????????????? | | =!#!?!!?# ??????????##???????????????????????????? | | !?#*!!??#???????????##???????????????????????????? | | ??##?!??????????????##???????????????????????????? | | ???![!??#???????????##???????????????????????????? | | ??##????????????????##???????????????????????????? | | ??##????#???????????##???????????????????????????? | | ??##????#???????????##???????????????????????????? | +----------------------------------------------------+ Best States ------------- Heat Dissipation 149 Energy Generation 61 Energy Capacity 1520 Matter Stores 300 Matter Capacity 300 Sight Range 24 Robot Scan Range 20 Terrain Scan Density 10 ECM Strength 1 Jamming Range 22 Cloak Strength 6 Armor Coverage 450 Core Shielding 90 Point Defense Rating 480 Weapon Cycling 30 Phase Shifting 25 Evasion (%) 97 Targeting Accuracy 12 Target Analysis 10 Core Analysis 12 Armor Integrity Analysis 50 Recoil Reduction 4 Offensive Hacking 23 Defensive Hacking 20 Authchip Count 2 Item Schematics ----------------- Flight Unit | -8/Materials | Scanalyzed Imp. Flight Unit | -8/Materials | Scanalyzed Imp. KE Penetrator | -2/Protoforge | Archive Com. Particle Reactor | -2/Protoforge | Archive Stealth Drone Bay | -2/Protoforge | Archive Exp. EM Shield | -2/Protoforge | Archive Exp. Optical Array | -2/Protoforge | Archive Gui. Micro-nuke Launcher | -2/Protoforge | Archive Exp. Gyrokinetic Inverter | -2/Protoforge | Archive Centrium Greatsword | -2/Protoforge | Archive Enh. Coil Gun | -2/Protoforge | Archive Hvy. Neutron Cannon | -2/Protoforge | Archive Shock Maul | -2/Protoforge | Archive Cld. Impulse Thruster | -2/Protoforge | Archive Tesla Bomb Launcher | -2/Protoforge | Archive Hellfire Missile Launcher | -2/Protoforge | Archive Lgt. Antimatter Cannon | -2/Protoforge | Archive Cld. Antimatter Reactor | -2/Protoforge | Archive Robot Schematics ------------------ B-74 Champion | -2/Protoforge | Archive S-43 Plague | -2/Protoforge | Archive Y-72 Warden | -2/Protoforge | Archive R-06 Scavenger | -2/Protoforge | Archive Fabricated ------------ Imp. Flight Unit | x1 | -7/Factory Imp. Flight Unit | x1 | -5/Factory | Authchip Imp. Flight Unit | x1 | -5/Factory | Authchip Repaired ---------- Lgt. Treads | 4% | -9/Materials Imp. Light Armor Plating | 49% | -4/Factory Studied --------- VTOL Module | -8/Materials | Hacked Flight Unit | -8/Materials | Hacked Mic. Nuclear Core | -5/Factory | Hacked Adv. Plasma Cannon | -5/Factory | Hacked Lgt. Ion Engine | -5/Factory | Hacked Power Sword | -5/Factory | Hacked Mic. Fission Core | -4/Factory | Hacked Matter Neutralizer | -4/Factory | Hacked Impulse Thruster | -4/Factory | Hacked Lgt. Antimatter Reactor | -3/Research | Hacked Micro-nuke Launcher | -2/Quarantine | Hacked Enh. Nova Cannon | -2/Protoforge | Hacked Alien Tech Used ----------------- Phase Redirector Dimensional Node Initializer Subatomic Replicator Core Cannon Supercharged TR Achievements -------------- Collector IP Theft Well-fed Force Field Worth The Wait Challenges ------------ None Game ------ Seed ModifiedAuthchipMapper Manual? 0 Play Time 04:24:40 Cumulative 365.5 hours Start 2026.07.28 @ 15:27:23 End 2026.07.29 @ 17:36:35 Sessions 3 Manual Loads 0 Difficulty Rogue Special Mode None Game No. 225 Rogue 221 Adventurer 4 Explorer 0 Win Type 9 Total 108 Types 86/0/12/3/1/1/1/0/0/4 Lore% 92 Gallery% 75 Achievement% 73 Wizard Run 0 Options --------- Layout 0 ASCII 0 Keyboard 1 Movement Vi Keybinds 1 Fullscreen 2 Font 18/SmallcapsGlow Map View 76x50 Zoom Use 0% Tactical HUD 1 Map Filters NONE Filters NONE Steam 1 RUN: 81616b44-4e25-4b73-b97e-50a704f9678f